[Event "CZE-ch FIDE Open 2020"]
[Site "Kouty nad Desnou"]
[Date "2020.03.07"]
[Round "1.10"]
[White "Broz, Petr"]
[Black "Vaculik, Martin"]
[Result "1-0"]
[ECO "B55"]
[WhiteElo "1976"]
[BlackElo "2268"]
[Annotator "ChessBase"]
[PlyCount "89"]
[EventDate "2020.03.07"]
[EventCountry "CZE"]
[SourceTitle "playchess.com"]
[Source "ChessBase"]
[SourceQuality "1"]
[TimeControl "5400+30"]

1. e4 {[%emt 0:00:00]} c5 {[%emt 0:00:00]} 2. Nf3 {[%emt 0:00:07]} d6 {[%emt 0:00:05]} 3. d4 {[%emt 0:00:36]} cxd4 {[%emt 0:00:24]} 4. Nxd4 {[%emt 0:00:31]} Nf6 {[%emt 0:00:07]} 5. f3 {[%emt 0:00:28]} e5 {[%emt 0:02:20]} 6. Bb5+ {[%emt 0:00:24]} Bd7 {[%emt 0:03:57]} 7. Bxd7+ {[%emt 0:00:32]} Qxd7 {[%emt 0:00:26]} 8. Nf5 {[%emt 0:00:11]} d5 {[%emt 0:02:27]} 9. Bg5 {[%emt 0:02:20]} dxe4 {[%emt 0:05:03]} 10. Bxf6 {[%emt 0:00:10]} Qxd1+ {[%emt 0:00:07]} 11. Kxd1 {[%emt 0:00:05]} gxf6 {[%emt 0:00:05]} 12. fxe4 {[%emt 0:00:05]} Nc6 {[%emt 0:02:43]} 13. c3 {[%emt 0:03:23]} O-O-O+ {[%emt 0:03:50]} 14. Ke2 {[%emt 0:02:58]} Ne7 {[%emt 0:07:17]} 15. Rf1 {[%emt 0:03:43]} Nxf5 {[%emt 0:05:04]} 16. Rxf5 {[%emt 0:00:06]} Bg7 {[%emt 0:00:10]} 17. Nd2 {[%emt 0:00:06]} Kd7 {[%emt 0:01:24]} 18. Raf1 {[%emt 0:02:48]} Ke6 {[%emt 0:00:20]} 19. Nc4 {[%emt 0:08:11]} h5 {[%emt 0:04:36]} 20. Ne3 {[%emt 0:00:35]} Rh6 {[%emt 0:01:50]} 21. R1f3 {[%emt 0:00:36]} Rdh8 {[%emt 0:04:54]} 22. Nd5 {[%emt 0:03:33]} Rg6 {[%emt 0:06:45]} 23. Rf2 {[%emt 0:09:34]} h4 {[%emt 0:02:12]} 24. h3 {[%emt 0:03:04]} Rg5 {[%emt 0:06:49]} 25. R5f3 {[%emt 0:00:20]} Rh6 {[%emt 0:00:45]} 26. Kf1 {[%emt 0:01:03]} Rg3 {[%emt 0:04:06]} 27. Rxg3 {[%emt 0:02:43]} hxg3 {[%emt 0:00:12]} 28. Rf3 {[%emt 0:02:04]} Rh4 {[%emt 0:11:08]} 29. Rxg3 {[%emt 0:01:29]} Rxe4 {[%emt 0:00:10]} 30. Nc7+ {[%emt 0:00:05]} Kd7 {[%emt 0:00:30]} 31. Rxg7 {[%emt 0:00:30]} Rf4+ {[%emt 0:00:06]} 32. Ke2 {[%emt 0:00:05]} Kxc7 {[%emt 0:00:05]} 33. Rxf7+ {[%emt 0:00:07]} Kc6 {[%emt 0:00:03]} 34. g3 {[%emt 0:00:22]} Rf5 {[%emt 0:01:16]} 35. h4 {[%emt 0:00:23]} a6 {[%emt 0:04:56]} 36. a4 {[%emt 0:04:04]} b5 {[%emt 0:00:18]} 37. a5 {[%emt 0:00:07]} Kc5 {[%emt 0:01:48]} 38. Ra7 {[%emt 0:00:37]} b4 {[%emt 0:00:42]} 39. Rxa6 {[%emt 0:02:01]} bxc3 {[%emt 0:00:07]} 40. bxc3 {[%emt 0:00:04]} Kb5 {[%emt 0:00:22]} 41. Ra8 {[%emt 0:00:30]} e4 {[%emt 0:04:28]} 42. a6 {[%emt 0:05:06]} Rf3 {[%emt 0:00:33]} 43. g4 {[%emt 0:02:36]} Rg3 {[%emt 0:11:38]} 44. Rf8 {[%emt 0:00:07]} Rxg4 {[%emt 0:01:03]} 45. a7 {[%emt 0:00:08]} 1-0

[Event "CZE-ch FIDE Open 2020"]
[Site "Kouty nad Desnou"]
[Date "2020.03.07"]
[Round "1.11"]
[White "Volaninova, Sarka"]
[Black "Slepov, Kyryl"]
[Result "0-1"]
[ECO "C22"]
[WhiteElo "1689"]
[BlackElo "1973"]
[Annotator "ChessBase"]
[PlyCount "110"]
[EventDate "2020.03.07"]
[EventCountry "CZE"]
[SourceTitle "playchess.com"]
[Source "ChessBase"]
[SourceQuality "1"]
[TimeControl "5400+30"]

1. e4 {[%emt 0:00:00]} e5 {[%emt 0:00:22]} 2. d4 {[%emt 0:00:21]} exd4 {[%emt 0:00:21]} 3. Qxd4 {[%emt 0:00:46]} Qf6 {[%emt 0:02:24]} 4. Qxf6 {[%emt 0:06:34]} Nxf6 {[%emt 0:00:39]} 5. Bd3 {[%emt 0:03:36]} Nc6 {[%emt 0:00:39]} 6. Ne2 {[%emt 0:02:50]} d5 {[%emt 0:00:52]} 7. exd5 {[%emt 0:03:11]} Nxd5 {[%emt 0:00:51]} 8. c3 {[%emt 0:12:37]} Be6 {[%emt 0:00:43]} 9. Nf4 {[%emt 0:02:43]} Nxf4 {[%emt 0:00:51]} 10. Bxf4 {[%emt 0:00:12]} O-O-O {[%emt 0:00:35]} 11. Bc2 {[%emt 0:02:13]} Bc4 {[%emt 0:03:13]} 12. Nd2 {[%emt 0:03:47]} Re8+ {[%emt 0:01:23]} 13. Be3 {[%emt 0:04:45]} Bd5 {[%emt 0:01:30]} 14. O-O {[%emt 0:01:06]} Bd6 {[%emt 0:00:38]} 15. Bb3 {[%emt 0:05:23]} Bxb3 {[%emt 0:01:14]} 16. Nxb3 {[%emt 0:03:14]} f5 {[%emt 0:00:17]} 17. Rfe1 {[%emt 0:05:55]} Ne5 {[%emt 0:02:11]} 18. Rad1 {[%emt 0:02:29]} Ng4 {[%emt 0:00:46]} 19. Bd4 {[%emt 0:05:20]} Bxh2+ {[%emt 0:01:37]} 20. Kf1 {[%emt 0:01:36]} Be5 {[%emt 0:00:51]} 21. Bxe5 {[%emt 0:00:52]} Rxe5 {[%emt 0:00:44]} 22. Rxe5 {[%emt 0:05:43]} Nxe5 {[%emt 0:01:01]} 23. Rd5 {[%emt 0:10:21]} Re8 {[%emt 0:01:32]} 24. Nc5 {[%emt 0:06:06]} b6 {[%emt 0:03:39]} 25. Nb3 {[%emt 0:03:14]} c6 {[%emt 0:01:38]} 26. Rd1 {[%emt 0:02:51]} c5 {[%emt 0:01:15]} 27. Rd2 {[%emt 0:01:51]} Nc4 {[%emt 0:01:44]} 28. Rc2 {[%emt 0:00:07]} Kc7 {[%emt 0:00:50]} 29. Nd2 {[%emt 0:01:26]} Nxd2+ {[%emt 0:00:44]} 30. Rxd2 {[%emt 0:00:02]} Kc6 {[%emt 0:00:24]} 31. c4 {[%emt 0:01:11]} a6 {[%emt 0:00:47]} 32. a4 {[%emt 0:00:50]} g6 {[%emt 0:00:40]} 33. Rd3 {[%emt 0:01:20]} Re4 {[%emt 0:01:33]} 34. b3 {[%emt 0:00:23]} b5 {[%emt 0:02:20]} 35. cxb5+ {[%emt 0:00:42]} axb5 {[%emt 0:00:08]} 36. axb5+ {[%emt 0:00:58]} Kxb5 {[%emt 0:00:13]} 37. g3 {[%emt 0:00:51]} Kb4 {[%emt 0:00:10]} 38. Rf3 {[%emt 0:00:55]} Re5 {[%emt 0:01:28]} 39. Rd3 {[%emt 0:00:26]} Re7 {[%emt 0:00:16]} 40. f3 {[%emt 0:00:23]} Ra7 {[%emt 0:00:24]} 41. Ke2 {[%emt 0:00:22]} Ra3 {[%emt 0:02:35]} 42. Rd7 {[%emt 0:00:28]} Rxb3 {[%emt 0:00:20]} 43. Rxh7 {[%emt 0:00:16]} Kc3 {[%emt 0:00:14]} 44. Rg7 {[%emt 0:00:32]} Rb6 {[%emt 0:00:11]} 45. Rc7 {[%emt 0:00:35]} Re6+ {[%emt 0:00:20]} 46. Kf2 {[%emt 0:00:54]} c4 {[%emt 0:00:10]} 47. g4 {[%emt 0:00:25]} fxg4 {[%emt 0:00:31]} 48. fxg4 {[%emt 0:00:03]} Kd3 {[%emt 0:00:18]} 49. Rd7+ {[%emt 0:00:33]} Kc2 {[%emt 0:00:12]} 50. Rc7 {[%emt 0:00:17]} c3 {[%emt 0:00:10]} 51. Kf3 {[%emt 0:00:51]} Kd2 {[%emt 0:00:34]} 52. Rd7+ {[%emt 0:00:08]} Kc1 {[%emt 0:00:11]} 53. Rc7 {[%emt 0:00:33]} c2 {[%emt 0:00:08]} 54. Rb7 {[%emt 0:00:09]} Rd6 {[%emt 0:00:15]} 55. Ke3 {[%emt 0:00:13]} Kd1 {[%emt 0:00:18]} 0-1

[Event "CZE-ch FIDE Open 2020"]
[Site "Kouty nad Desnou"]
[Date "2020.03.07"]
[Round "1.12"]
[White "Klubal, Jiri"]
[Black "Vokoun, Tomas"]
[Result "1-0"]
[ECO "B54"]
[WhiteElo "1935"]
[BlackElo "1673"]
[Annotator "ChessBase"]
[PlyCount "83"]
[EventDate "2020.03.07"]
[EventCountry "CZE"]
[SourceTitle "playchess.com"]
[Source "ChessBase"]
[SourceQuality "1"]
[TimeControl "5400+30"]

1. e4 {[%emt 0:00:00]} c5 {[%emt 0:00:27]} 2. Nf3 {[%emt 0:00:00]} e6 {[%emt 0:00:23]} 3. c4 {[%emt 0:00:07]} Nc6 {[%emt 0:01:13]} 4. Nc3 {[%emt 0:01:17]} d6 {[%emt 0:01:51]} 5. d4 {[%emt 0:00:31]} cxd4 {[%emt 0:00:35]} 6. Nxd4 {[%emt 0:00:09]} Nf6 {[%emt 0:01:28]} 7. Be3 {[%emt 0:00:56]} g6 {[%emt 0:01:38]} 8. Be2 {[%emt 0:03:22]} a6 {[%emt 0:01:11]} 9. O-O {[%emt 0:02:23]} Bg7 {[%emt 0:01:36]} 10. f3 {[%emt 0:07:40]} O-O {[%emt 0:02:02]} 11. Rc1 {[%emt 0:02:10]} d5 {[%emt 0:13:07]} 12. cxd5 {[%emt 0:17:00]} exd5 {[%emt 0:00:20]} 13. exd5 {[%emt 0:11:02]} Nxd5 {[%emt 0:02:22]} 14. Nxd5 {[%emt 0:02:29]} Qxd5 {[%emt 0:04:16]} 15. Nxc6 {[%emt 0:04:13]} bxc6 {[%emt 0:00:59]} 16. b3 {[%emt 0:01:23]} Qa5 {[%emt 0:14:09]} 17. Rxc6 {[%emt 0:20:16]} Qxa2 {[%emt 0:02:15]} 18. Bc4 {[%emt 0:05:56]} Bf5 {[%emt 0:13:21]} 19. Rf2 {[%emt 0:02:19]} Qb1 {[%emt 0:09:00]} 20. Qxb1 {[%emt 0:01:44]} Bxb1 {[%emt 0:00:13]} 21. Rxa6 {[%emt 0:00:59]} Rxa6 {[%emt 0:07:55]} 22. Bxa6 {[%emt 0:00:09]} Rb8 {[%emt 0:01:13]} 23. Bc4 {[%emt 0:00:42]} Bc3 {[%emt 0:01:35]} 24. Re2 {[%emt 0:05:22]} Kg7 {[%emt 0:06:58]} 25. g4 {[%emt 0:01:18]} f5 {[%emt 0:03:40]} 26. h3 {[%emt 0:04:17]} Kf6 {[%emt 0:05:11]} 27. Bc1 {[%emt 0:00:56]} Rd8 {[%emt 0:01:55]} 28. Bh6 {[%emt 0:02:03]} fxg4 {[%emt 0:01:44]} 29. Re6+ {[%emt 0:03:03]} Kf7 {[%emt 0:00:26]} 30. Re3+ {[%emt 0:00:39]} Kf6 {[%emt 0:00:30]} 31. Rxc3 {[%emt 0:00:31]} gxh3 {[%emt 0:01:10]} 32. Bf4 {[%emt 0:00:25]} Rd4 {[%emt 0:00:27]} 33. Be3 {[%emt 0:00:24]} Rh4 {[%emt 0:01:20]} 34. Kh2 {[%emt 0:01:15]} g5 {[%emt 0:00:30]} 35. Bf2 {[%emt 0:00:30]} Rh6 {[%emt 0:00:30]} 36. Be2 {[%emt 0:00:30]} Kf5 {[%emt 0:00:30]} 37. Rc5+ {[%emt 0:00:30]} Kf4 {[%emt 0:00:30]} 38. Rc8 {[%emt 0:00:30]} Bf5 {[%emt 0:00:30]} 39. Rf8 {[%emt 0:00:30]} Ke5 {[%emt 0:00:30]} 40. Bg3+ {[%emt 0:00:30]} Ke6 {[%emt 0:00:30]} 41. Bc4+ {[%emt 0:00:30]} Ke7 {[%emt 0:00:30]} 42. Rxf5 {[%emt 0:00:30]} 1-0

[Event "CZE-ch FIDE Open 2020"]
[Site "Kouty nad Desnou"]
[Date "2020.03.07"]
[Round "1.13"]
[White "Kanka, Lukas"]
[Black "Zdechovsky, Tobias"]
[Result "1-0"]
[ECO "A45"]
[WhiteElo "1618"]
[BlackElo "1922"]
[Annotator "ChessBase"]
[PlyCount "81"]
[EventDate "2020.03.07"]
[EventCountry "CZE"]
[SourceTitle "playchess.com"]
[Source "ChessBase"]
[SourceQuality "1"]
[TimeControl "5400+30"]

1. d4 {[%emt 0:00:00]} Nf6 {[%emt 0:00:00]} 2. Nc3 {[%emt 0:00:00]} c5 {[%emt 0:02:18]} 3. dxc5 {[%emt 0:03:48]} Qa5 {[%emt 0:06:57]} 4. g3 {[%emt 0:05:55]} Qxc5 {[%emt 0:12:45]} 5. Bg2 {[%emt 0:03:50]} g6 {[%emt 0:01:00]} 6. Nf3 {[%emt 0:02:35]} Bg7 {[%emt 0:09:15]} 7. O-O {[%emt 0:03:43]} O-O {[%emt 0:00:25]} 8. Be3 {[%emt 0:02:18]} Qc7 {[%emt 0:13:23]} 9. Nb5 {[%emt 0:04:51]} Qa5 {[%emt 0:00:11]} 10. Nbd4 {[%emt 0:05:22]} d5 {[%emt 0:09:42]} 11. Qd2 {[%emt 0:05:26]} Qxd2 {[%emt 0:00:22]} 12. Bxd2 {[%emt 0:00:42]} Ne4 {[%emt 0:00:41]} 13. Bb4 {[%emt 0:01:07]} Re8 {[%emt 0:01:07]} 14. e3 {[%emt 0:08:54]} e5 {[%emt 0:13:08]} 15. Nb5 {[%emt 0:06:45]} Na6 {[%emt 0:00:07]} 16. Ba3 {[%emt 0:01:56]} Bd7 {[%emt 0:04:02]} 17. Nd6 {[%emt 0:00:37]} Nxd6 {[%emt 0:00:13]} 18. Bxd6 {[%emt 0:00:05]} Rac8 {[%emt 0:03:56]} 19. Ng5 {[%emt 0:06:45]} e4 {[%emt 0:02:55]} 20. c3 {[%emt 0:01:53]} Nc5 {[%emt 0:01:06]} 21. Bxc5 {[%emt 0:05:19]} Rxc5 {[%emt 0:00:10]} 22. Nh3 {[%emt 0:01:06]} Bg4 {[%emt 0:01:19]} 23. Rfe1 {[%emt 0:01:16]} b5 {[%emt 0:01:37]} 24. Nf4 {[%emt 0:01:16]} g5 {[%emt 0:02:42]} 25. Ne2 {[%emt 0:01:15]} Bxe2 {[%emt 0:00:24]} 26. Rxe2 {[%emt 0:00:43]} g4 {[%emt 0:00:37]} 27. Rd2 {[%emt 0:00:54]} f5 {[%emt 0:00:12]} 28. Rad1 {[%emt 0:01:08]} Rd8 {[%emt 0:00:36]} 29. b4 {[%emt 0:01:21]} Rxc3 {[%emt 0:00:10]} 30. Rxd5 {[%emt 0:00:11]} Rxd5 {[%emt 0:02:11]} 31. Rxd5 {[%emt 0:00:07]} Rc1+ {[%emt 0:00:15]} 32. Bf1 {[%emt 0:00:09]} a6 {[%emt 0:00:25]} 33. Rd6 {[%emt 0:02:52]} Bc3 {[%emt 0:01:49]} 34. Rxa6 {[%emt 0:02:30]} Bxb4 {[%emt 0:03:38]} 35. Rb6 {[%emt 0:00:42]} Be1 {[%emt 0:03:14]} 36. Rxb5 {[%emt 0:00:13]} Kg7 {[%emt 0:00:26]} 37. Rxf5 {[%emt 0:00:16]} Rc2 {[%emt 0:00:30]} 38. Bg2 {[%emt 0:00:47]} h5 {[%emt 0:01:55]} 39. Bxe4 {[%emt 0:00:25]} Rxa2 {[%emt 0:00:30]} 40. Kf1 {[%emt 0:00:30]} Ra5 {[%emt 0:00:18]} 41. Kxe1 {[%emt 0:02:16]} 1-0

[Event "CZE-ch FIDE Open 2020"]
[Site "Kouty nad Desnou"]
[Date "2020.03.07"]
[Round "1.14"]
[White "Glozar, Petr"]
[Black "Dedek, Jan"]
[Result "1-0"]
[ECO "D85"]
[WhiteElo "1918"]
[BlackElo "1551"]
[Annotator "ChessBase"]
[PlyCount "57"]
[EventDate "2020.03.07"]
[EventCountry "CZE"]
[SourceTitle "playchess.com"]
[Source "ChessBase"]
[SourceQuality "1"]
[TimeControl "5400+30"]

1. d4 {[%emt 0:00:00]} Nf6 {[%emt 0:00:00]} 2. c4 {[%emt 0:00:00]} g6 {[%emt 0:00:06]} 3. Nc3 {[%emt 0:00:00]} d5 {[%emt 0:00:05]} 4. cxd5 {[%emt 0:00:01]} Nxd5 {[%emt 0:00:05]} 5. e4 {[%emt 0:00:05]} Nxc3 {[%emt 0:00:05]} 6. bxc3 {[%emt 0:00:04]} Bg7 {[%emt 0:00:03]} 7. Nf3 {[%emt 0:00:42]} O-O {[%emt 0:00:26]} 8. Be2 {[%emt 0:04:42]} c5 {[%emt 0:00:42]} 9. O-O {[%emt 0:00:43]} Nc6 {[%emt 0:00:33]} 10. d5 {[%emt 0:09:11]} Ne5 {[%emt 0:11:50]} 11. Nxe5 {[%emt 0:01:18]} Bxe5 {[%emt 0:00:08]} 12. Qd2 {[%emt 0:00:32]} e6 {[%emt 0:02:31]} 13. f4 {[%emt 0:01:49]} Bg7 {[%emt 0:00:14]} 14. d6 {[%emt 0:12:06]} e5 {[%emt 0:00:43]} 15. f5 {[%emt 0:01:45]} gxf5 {[%emt 0:01:07]} 16. exf5 {[%emt 0:00:21]} Bd7 {[%emt 0:00:37]} 17. Qe3 {[%emt 0:18:14]} Rc8 {[%emt 0:01:19]} 18. Qg3 {[%emt 0:02:39]} Kh8 {[%emt 0:00:25]} 19. Bc4 {[%emt 0:01:56]} b5 {[%emt 0:02:43]} 20. Bb3 {[%emt 0:06:44]} a5 {[%emt 0:06:57]} 21. Qf3 {[%emt 0:10:47]} Qf6 {[%emt 0:05:05]} 22. Qh5 {[%emt 0:04:52]} Qxd6 {[%emt 0:04:46]} 23. Rf3 {[%emt 0:05:07]} e4 {[%emt 0:06:45]} 24. Bf4 {[%emt 0:04:44]} Qb6 {[%emt 0:02:27]} 25. Rh3 {[%emt 0:00:30]} h6 {[%emt 0:00:14]} 26. Rd1 {[%emt 0:04:29]} c4+ {[%emt 0:04:50]} 27. Be3 {[%emt 0:01:00]} Qa6 {[%emt 0:01:58]} 28. Bc2 {[%emt 0:01:28]} Qf6 {[%emt 0:04:50]} 29. Bd4 {[%emt 0:02:23]} 1-0

[Event "CZE-ch FIDE Open 2020"]
[Site "Kouty nad Desnou"]
[Date "2020.03.07"]
[Round "1.15"]
[White "Hradek, Matyas"]
[Black "Stastny, Jakub"]
[Result "1/2-1/2"]
[ECO "C01"]
[WhiteElo "1508"]
[BlackElo "1917"]
[Annotator "ChessBase"]
[PlyCount "81"]
[EventDate "2020.03.07"]
[EventCountry "CZE"]
[SourceTitle "playchess.com"]
[Source "ChessBase"]
[SourceQuality "1"]
[TimeControl "5400+30"]

1. e4 {[%emt 0:00:00]} e6 {[%emt 0:30:32]} 2. d4 {[%emt 0:20:29]} d5 {[%emt 0:00:30]} 3. exd5 {[%emt 0:00:30]} exd5 {[%emt 0:00:30]} 4. Nf3 {[%emt 0:00:30]} h6 {[%emt 0:00:30]} 5. Bf4 {[%emt 0:00:30]} Bg4 {[%emt 0:00:30]} 6. Nbd2 {[%emt 0:00:30]} Nd7 {[%emt 0:00:30]} 7. Bd3 {[%emt 0:00:30]} Ngf6 {[%emt 0:00:30]} 8. h3 {[%emt 0:00:30]} Be6 {[%emt 0:00:30]} 9. Qe2 {[%emt 0:00:30]} c6 {[%emt 0:00:30]} 10. Bf5 {[%emt 0:00:30]} Qe7 {[%emt 0:08:34]} 11. Bxe6 {[%emt 0:02:07]} Qxe6 {[%emt 0:10:21]} 12. Qxe6+ {[%emt 0:00:30]} fxe6 {[%emt 0:00:30]} 13. O-O-O {[%emt 0:00:30]} g5 {[%emt 0:00:30]} 14. Bh2 {[%emt 0:02:31]} Bg7 {[%emt 0:08:57]} 15. Rde1 {[%emt 0:01:51]} Kf7 {[%emt 0:00:47]} 16. Ne5+ {[%emt 0:00:50]} Nxe5 {[%emt 0:04:22]} 17. Bxe5 {[%emt 0:00:17]} Rae8 {[%emt 0:00:30]} 18. Re2 {[%emt 0:07:35]} Nh5 {[%emt 0:00:30]} 19. Bxg7 {[%emt 0:01:11]} Kxg7 {[%emt 0:05:37]} 20. g3 {[%emt 0:00:29]} Rhf8 {[%emt 0:01:10]} 21. h4 {[%emt 0:05:39]} g4 {[%emt 0:01:51]} 22. Kd1 {[%emt 0:04:42]} Rf5 {[%emt 0:06:40]} 23. Nf1 {[%emt 0:02:51]} Nf6 {[%emt 0:03:48]} 24. Ne3 {[%emt 0:01:58]} Rf3 {[%emt 0:00:30]} 25. h5 {[%emt 0:03:52]} e5 {[%emt 0:01:12]} 26. Rh4 {[%emt 0:01:24]} exd4 {[%emt 0:02:12]} 27. Nxg4 {[%emt 0:00:51]} d3 {[%emt 0:01:36]} 28. Rxe8 {[%emt 0:01:06]} dxc2+ {[%emt 0:00:02]} 29. Kxc2 {[%emt 0:00:11]} Nxe8 {[%emt 0:00:06]} 30. Kd2 {[%emt 0:00:41]} Nf6 {[%emt 0:01:21]} 31. Ke2 {[%emt 0:01:11]} Rf5 {[%emt 0:00:03]} 32. Nxf6 {[%emt 0:01:28]} Kxf6 {[%emt 0:00:01]} 33. Rb4 {[%emt 0:01:27]} b5 {[%emt 0:01:40]} 34. g4 {[%emt 0:00:17]} Re5+ {[%emt 0:00:03]} 35. Kd2 {[%emt 0:01:53]} a6 {[%emt 0:00:23]} 36. f4 {[%emt 0:00:24]} Re6 {[%emt 0:01:01]} 37. Rb3 {[%emt 0:01:00]} Re4 {[%emt 0:00:30]} 38. Rc3 {[%emt 0:01:08]} Re6 {[%emt 0:03:38]} 39. b4 {[%emt 0:02:13]} Rd6 {[%emt 0:06:33]} 40. Re3 {[%emt 0:33:24]} a5 {[%emt 0:00:30]} 41. a3 {[%emt 0:00:30]} 1/2-1/2

[Event "CZE-ch FIDE Open 2020"]
[Site "Kouty nad Desnou"]
[Date "2020.03.08"]
[Round "2.1"]
[White "Glozar, Petr"]
[Black "Sikorova, Olga"]
[Result "1/2-1/2"]
[ECO "A70"]
[WhiteElo "1918"]
[BlackElo "2199"]
[Annotator "ChessBase"]
[PlyCount "78"]
[EventDate "2020.03.07"]
[EventCountry "CZE"]
[SourceTitle "playchess.com"]
[Source "ChessBase"]
[SourceQuality "1"]
[TimeControl "5400+30"]

1. d4 {[%emt 0:00:00]} Nf6 {[%emt 0:00:00]} 2. c4 {[%emt 0:00:00]} g6 {[%emt 0:00:00]} 3. Nc3 {[%emt 0:00:00]} Bg7 {[%emt 0:00:00]} 4. e4 {[%emt 0:00:00]} d6 {[%emt 0:00:13]} 5. Nf3 {[%emt 0:00:01]} O-O {[%emt 0:00:08]} 6. h3 {[%emt 0:00:10]} c5 {[%emt 0:01:24]} 7. d5 {[%emt 0:00:23]} e6 {[%emt 0:06:36]} 8. Bd3 {[%emt 0:00:50]} exd5 {[%emt 0:02:32]} 9. cxd5 {[%emt 0:00:12]} Nbd7 {[%emt 0:00:47]} 10. O-O {[%emt 0:00:46]} a6 {[%emt 0:00:56]} 11. a4 {[%emt 0:00:11]} Qe7 {[%emt 0:00:33]} 12. Bf4 {[%emt 0:01:57]} Nh5 {[%emt 0:04:43]} 13. Bh2 {[%emt 0:00:58]} Be5 {[%emt 0:03:13]} 14. Nxe5 {[%emt 0:11:48]} dxe5 {[%emt 0:00:19]} 15. Qd2 {[%emt 0:02:06]} Qf6 {[%emt 0:07:54]} 16. Ne2 {[%emt 0:04:21]} g5 {[%emt 0:03:53]} 17. Ng3 {[%emt 0:10:42]} Nf4 {[%emt 0:02:50]} 18. Be2 {[%emt 0:00:43]} Rb8 {[%emt 0:04:44]} 19. b4 {[%emt 0:12:34]} b5 {[%emt 0:04:18]} 20. axb5 {[%emt 0:04:21]} Nxe2+ {[%emt 0:03:58]} 21. Nxe2 {[%emt 0:00:59]} Rxb5 {[%emt 0:01:52]} 22. Rab1 {[%emt 0:03:40]} h6 {[%emt 0:03:57]} 23. bxc5 {[%emt 0:03:06]} Nxc5 {[%emt 0:03:28]} 24. Rxb5 {[%emt 0:02:05]} axb5 {[%emt 0:00:01]} 25. Qc2 {[%emt 0:08:09]} Nb7 {[%emt 0:03:53]} 26. Qb2 {[%emt 0:02:20]} Re8 {[%emt 0:00:24]} 27. Qxb5 {[%emt 0:01:41]} Nd6 {[%emt 0:00:02]} 28. Qa4 {[%emt 0:00:54]} Qe7 {[%emt 0:08:27]} 29. f3 {[%emt 0:05:52]} f5 {[%emt 0:03:28]} 30. Nc3 {[%emt 0:07:16]} f4 {[%emt 0:01:02]} 31. Kh1 {[%emt 0:01:21]} h5 {[%emt 0:00:37]} 32. Bg1 {[%emt 0:02:40]} g4 {[%emt 0:05:14]} 33. Bc5 {[%emt 0:02:25]} Rd8 {[%emt 0:08:07]} 34. Nb5 {[%emt 0:04:58]} gxh3 {[%emt 0:05:44]} 35. Nxd6 {[%emt 0:00:57]} Qh4 {[%emt 0:00:30]} 36. Nxc8 {[%emt 0:06:56]} Kh8 {[%emt 0:02:48]} 37. Ne7 {[%emt 0:00:29]} hxg2+ {[%emt 0:03:01]} 38. Kxg2 {[%emt 0:00:06]} Qg3+ {[%emt 0:00:09]} 39. Kh1 {[%emt 0:00:03]} Qh3+ {[%emt 0:00:07]} 1/2-1/2

[Event "CZE-ch FIDE Open 2020"]
[Site "Kouty nad Desnou"]
[Date "2020.03.08"]
[Round "2.2"]
[White "Zamecnik, Jan"]
[Black "Bares, Jachym"]
[Result "0-1"]
[ECO "D10"]
[WhiteElo "1850"]
[BlackElo "2119"]
[Annotator "ChessBase"]
[PlyCount "104"]
[EventDate "2020.03.07"]
[EventCountry "CZE"]
[SourceTitle "playchess.com"]
[Source "ChessBase"]
[SourceQuality "1"]
[TimeControl "5400+30"]

1. d4 {[%emt 0:00:00]} Nf6 {[%emt 0:00:00]} 2. Nf3 {[%emt 0:00:00]} c5 {[%emt 0:00:00]} 3. c3 {[%emt 0:01:28]} e6 {[%emt 0:02:00]} 4. g3 {[%emt 0:00:39]} cxd4 {[%emt 0:02:07]} 5. cxd4 {[%emt 0:00:12]} d5 {[%emt 0:00:27]} 6. Bg2 {[%emt 0:00:24]} Bd6 {[%emt 0:02:06]} 7. O-O {[%emt 0:00:35]} O-O {[%emt 0:00:03]} 8. Nc3 {[%emt 0:01:21]} Bd7 {[%emt 0:02:06]} 9. Qb3 {[%emt 0:08:05]} Qb6 {[%emt 0:02:22]} 10. Qxb6 {[%emt 0:10:46]} axb6 {[%emt 0:00:02]} 11. Bf4 {[%emt 0:00:27]} Bxf4 {[%emt 0:04:22]} 12. gxf4 {[%emt 0:01:06]} Rc8 {[%emt 0:01:13]} 13. Ne5 {[%emt 0:10:50]} Nc6 {[%emt 0:02:04]} 14. Rfd1 {[%emt 0:08:42]} Be8 {[%emt 0:04:54]} 15. f5 {[%emt 0:12:16]} Nxe5 {[%emt 0:03:12]} 16. dxe5 {[%emt 0:00:26]} Nd7 {[%emt 0:07:08]} 17. fxe6 {[%emt 0:08:30]} fxe6 {[%emt 0:00:14]} 18. e4 {[%emt 0:01:35]} Bh5 {[%emt 0:06:12]} 19. Rd4 {[%emt 0:05:33]} Rc4 {[%emt 0:01:45]} 20. Rxc4 {[%emt 0:05:21]} dxc4 {[%emt 0:00:02]} 21. f4 {[%emt 0:01:05]} Nc5 {[%emt 0:00:51]} 22. f5 {[%emt 0:04:41]} Re8 {[%emt 0:03:26]} 23. Bf1 {[%emt 0:05:41]} Nd3 {[%emt 0:01:58]} 24. b3 {[%emt 0:01:55]} Nxe5 {[%emt 0:01:33]} 25. bxc4 {[%emt 0:06:10]} exf5 {[%emt 0:01:57]} 26. exf5 {[%emt 0:01:22]} Nf3+ {[%emt 0:05:53]} 27. Kf2 {[%emt 0:01:24]} Nxh2 {[%emt 0:02:10]} 28. Bg2 {[%emt 0:02:39]} Ng4+ {[%emt 0:01:01]} 29. Kg1 {[%emt 0:00:35]} Bf7 {[%emt 0:05:03]} 30. Bxb7 {[%emt 0:00:35]} Bxc4 {[%emt 0:01:37]} 31. Rb1 {[%emt 0:00:27]} b5 {[%emt 0:09:40]} 32. Nxb5 {[%emt 0:00:27]} Bxa2 {[%emt 0:01:40]} 33. Ra1 {[%emt 0:00:39]} Bf7 {[%emt 0:02:57]} 34. Nd6 {[%emt 0:00:31]} Rd8 {[%emt 0:01:42]} 35. Ra8 {[%emt 0:00:29]} Rxa8 {[%emt 0:00:31]} 36. Bxa8 {[%emt 0:00:01]} Bb3 {[%emt 0:02:16]} 37. Be4 {[%emt 0:00:39]} Kf8 {[%emt 0:01:05]} 38. Nb5 {[%emt 0:00:47]} Ke7 {[%emt 0:01:04]} 39. Nd4 {[%emt 0:00:09]} Ba2 {[%emt 0:01:07]} 40. Kg2 {[%emt 0:00:39]} Kf6 {[%emt 0:00:30]} 41. Kg3 {[%emt 0:00:45]} Ne3 {[%emt 0:09:18]} 42. Kf4 {[%emt 0:00:14]} Nd5+ {[%emt 0:00:05]} 43. Kf3 {[%emt 0:00:47]} Nc3 {[%emt 0:01:03]} 44. Bc2 {[%emt 0:00:27]} Bd5+ {[%emt 0:04:21]} 45. Kf4 {[%emt 0:00:20]} Bb7 {[%emt 0:00:15]} 46. Ne6 {[%emt 0:00:42]} Nd5+ {[%emt 0:00:11]} 47. Kg3 {[%emt 0:00:31]} Ne3 {[%emt 0:00:24]} 48. Bb1 {[%emt 0:00:31]} h6 {[%emt 0:01:32]} 49. Nc5 {[%emt 0:00:24]} Bc8 {[%emt 0:01:08]} 50. Ne4+ {[%emt 0:00:36]} Ke5 {[%emt 0:01:25]} 51. f6 {[%emt 0:00:27]} gxf6 {[%emt 0:00:36]} 52. Kf3 {[%emt 0:00:29]} Nc4 {[%emt 0:00:59]} 0-1